fUSD/lending_fUSD_20251224
["ID","MTS","AMOUNT","RATE_DAILY","PERIOD"]
[399641149,1766583862527,4745.44279311,0.00013671,2]
[399641150,1766583868023,5254.56720689,0.00014164,2]
[399641151,1766583868049,10000.01,0.00014164,2]
[399641152,1766583868074,1376.16644603,0.00014164,2]
[399641157,1766583992690,616.6881476,0.00014165,2]
[399641158,1766584029092,323.08,0.00013432,2]
[399641159,1766584064677,7684.07540637,0.00014163,2]
[399641160,1766584064708,10000.01,0.00014163,2]
[399641161,1766584064737,10000.01,0.00014163,2]
[399641162,1766584064766,10000.01,0.00014163,2]
[399641163,1766584064794,10000.01,0.00014163,2]
[399641164,1766584064824,10000.01,0.00014163,2]
[399641165,1766584064854,10000.01,0.00014163,2]
[399641166,1766584064883,10000.01,0.00014163,2]
[399641167,1766584064912,10000.01,0.00014163,2]
[399641168,1766584064940,10000.01,0.00014163,2]
[399641169,1766584065832,2960.38875388,0.00013419,2]
[399641170,1766584065855,137.32124612,0.00013419,2]
[399641171,1766584067798,1000.0,0.00022,30]
[399641172,1766584076271,3793.38,0.00022,30]
[399641173,1766584081669,300.0,0.00014162,2]
[399641174,1766584082903,150.0,0.00014162,2]
[399641175,1766584084717,628.42658532,0.00014163,2]
[399641176,1766584089275,1200.0,0.00014162,2]
[399641177,1766584112539,7721.58341468,0.00014063,2]
[399641178,1766584112565,7422.81611893,0.00014063,2]
[399641179,1766584116713,2793.0,0.00032877,120]
[399641181,1766584162486,249.14130114,0.00014162,2]
[399641182,1766584162604,500.0,0.00014162,2]
[399641183,1766584163072,249.89124715,0.00014162,2]
[399641184,1766584170329,500.0,0.00014162,2]
[399641185,1766584170374,500.0,0.00014162,2]
[399641186,1766584170417,500.0,0.00014162,2]
[399641187,1766584170462,78.16133278,0.00014162,2]
[399641188,1766584170488,421.83866722,0.00014162,2]
[399641189,1766584170531,500.0,0.00014162,2]
[399641190,1766584170572,500.0,0.00014162,2]
[399641191,1766584170615,226.28199911,0.00014162,2]
[399641192,1766584170660,500.0,0.00014162,2]
[399641193,1766584170694,500.0,0.00014162,2]
[399641194,1766584170742,500.0,0.00014162,2]
[399641195,1766584170777,170.09376054,0.00014162,2]
[399641196,1766584170826,500.0,0.00014162,2]
[399641197,1766584170871,500.0,0.00014162,2]
[399641198,1766584170908,500.0,0.00014162,2]
[399641199,1766584170944,500.0,0.00014162,2]
[399641200,1766584171312,500.0,0.00014162,2]
[399641201,1766584177875,250.42,0.00013377,2]
[399641202,1766584184254,208.48179988,0.00014162,2]
[399641203,1766584191503,250.0,0.00014161,2]
[399641204,1766584193493,500.0,0.00014162,2]
[399641205,1766584193692,640.18386985,0.00014162,2]
[399641206,1766584193738,343.57563792,0.00014162,2]
[399641207,1766584194123,500.0,0.00014162,2]
[399641208,1766584194919,500.0,0.00014162,2]
[399641209,1766584195016,500.0,0.00014162,2]
[399641210,1766584195672,489.13426548,0.00014162,2]
[399641211,1766584195699,10.86573452,0.00014162,2]
[399641212,1766584195887,500.0,0.00014162,2]
[399641213,1766584196240,500.0,0.00014162,2]
[399641214,1766584196557,500.0,0.00014162,2]
[399641215,1766584196599,500.0,0.00014162,2]
[399641216,1766584196644,500.0,0.00014162,2]
[399641217,1766584196700,500.0,0.00014162,2]
[399641218,1766584196789,357.21575151,0.00014162,2]
[399641219,1766584201242,300.0,0.00014162,2]
[399641220,1766584203525,1200.0,0.00014162,2]
[399641221,1766584204132,267.0,0.00014163,2]
[399641222,1766584213725,500.0,0.00014162,2]
[399641223,1766584213797,500.0,0.00014162,2]
[399641224,1766584213864,500.0,0.00014162,2]
[399641225,1766584213924,500.0,0.00014162,2]
[399641226,1766584213998,500.0,0.00014162,2]
[399641227,1766584214056,157.21575151,0.00014162,2]
[399641228,1766584222577,500.0,0.00014162,2]
[399641229,1766584226413,500.0,0.00014162,2]
[399641230,1766584226464,500.0,0.00014162,2]
[399641231,1766584226532,500.0,0.00014162,2]
[399641232,1766584226572,207.71276246,0.00014162,2]
[399641233,1766584226598,194.73217497,0.00014162,2]
[399641234,1766584226648,500.0,0.00014162,2]
[399641235,1766584226692,500.0,0.00014162,2]
[399641236,1766584226736,500.0,0.00014162,2]
[399641237,1766584226810,500.0,0.00014162,2]
[399641238,1766584226848,500.0,0.00014162,2]
[399641239,1766584226891,500.0,0.00014162,2]
[399641240,1766584226933,500.0,0.00014162,2]
[399641241,1766584226977,500.0,0.00014162,2]
[399641242,1766584227044,500.0,0.00014162,2]
[399641243,1766584227089,500.0,0.00014162,2]
[399641244,1766584228128,500.0,0.00014162,2]
[399641247,1766584231628,-63804.91591608,0.00014163,2]
[399641248,1766584231689,-588.01462788,0.00014163,2]
[399641249,1766584231701,-999.66967205,0.00014163,2]
[399641250,1766584231856,-1295.49444711,0.00014163,2]
[399641251,1766584231867,-1887.62,0.00014163,2]
[399641339,1766584237783,-833740.11993051,0.00014163,2]
[399641340,1766584237794,-46690.9191,0.00014163,2]
[399641341,1766584237804,-1191.16039457,0.00014253,2]
[399641342,1766584237814,-151.0,0.0001426,2]
[399641343,1766584237824,-600.0,0.00014261,2]
[399641344,1766584237835,-300.0,0.00014261,2]
[399641345,1766584237845,-250.0,0.00014261,2]
[399641346,1766584237856,-391.52136296,0.00014262,2]
[399641347,1766584237867,-500.0,0.00014262,2]
[399641348,1766584237877,-500.0,0.00014262,2]
[399641349,1766584237887,-500.0,0.00014262,2]
[399641350,1766584237897,-600.0,0.00014262,2]
[399641351,1766584237908,-250.0,0.00014262,2]
[399641352,1766584237918,-500.0,0.00014262,2]
[399641353,1766584237928,-500.0,0.00014262,2]
[399641354,1766584237938,-446115.548561,0.00014263,2]
[399641355,1766584237948,-1928.1702827,0.00014263,2]
[399641356,1766584237958,-78254.4009572,0.00014263,2]
[399641357,1766584237968,-500.0,0.00014275,2]
[399641358,1766584237979,-500.0,0.00014275,2]
[399641359,1766584237989,-500.0,0.00014275,2]
[399641360,1766584237999,-500.0,0.00014275,2]
[399641361,1766584238009,-500.0,0.00014275,2]
[399641362,1766584238019,-500.0,0.00014275,2]
[399641363,1766584238029,-500.0,0.00014275,2]
[399641364,1766584238039,-500.0,0.00014275,2]
[399641365,1766584238049,-500.0,0.00014275,2]
[399641366,1766584238064,-500.0,0.00014275,2]
[399641367,1766584238080,-258.4625405,0.00014275,2]
[399641368,1766584238091,-543.18761393,0.00014275,2]
[399641369,1766584238103,-500.0,0.00014275,2]
[399641370,1766584238113,-500.0,0.00014275,2]
[399641372,1766584238124,-500.0,0.00014275,2]
[399641374,1766584238135,-500.0,0.00014275,2]
[399641375,1766584238145,-500.0,0.00014275,2]
[399641378,1766584238156,-500.0,0.00014275,2]
[399641380,1766584238166,-500.0,0.00014275,2]
[399641382,1766584238176,-500.0,0.00014275,2]
[399641383,1766584238186,-500.0,0.00014275,2]
[399641384,1766584238196,-500.0,0.00014275,2]
[399641385,1766584238207,-500.0,0.00014275,2]
[399641386,1766584238218,-500.0,0.00014275,2]
[399641387,1766584238229,-500.0,0.00014275,2]
[399641388,1766584238239,-500.0,0.00014275,2]
[399641389,1766584238250,-500.0,0.00014275,2]
[399641390,1766584238260,-500.0,0.00014275,2]
[399641391,1766584238270,-500.0,0.00014275,2]
[399641392,1766584238281,-500.0,0.00014275,2]
[399641393,1766584238292,-500.0,0.00014275,2]
[399641394,1766584238302,-500.0,0.00014275,2]
[399641395,1766584238312,-500.0,0.00014275,2]
[399641396,1766584238322,-500.0,0.00014275,2]
[399641397,1766584238333,-500.0,0.00014275,2]
[399641398,1766584238343,-2396.35,0.00014275,2]
[399641399,1766584238353,-190.41688423,0.00014276,2]
[399641400,1766584238363,-500.0,0.00014276,2]
[399641401,1766584238373,-294.2331637,0.00014276,2]
[399641402,1766584238383,-500.0,0.00014276,2]
[399641403,1766584238393,-500.0,0.00014276,2]
[399641404,1766584238407,-500.0,0.00014276,2]
[399641405,1766584238417,-9999.99,0.00014276,2]
[399641406,1766584238428,-2282.35,0.00014276,2]
[399641407,1766584238444,-333.22,0.00014276,2]
[399641408,1766584238454,-999.99,0.00014276,2]
[399641409,1766584238464,-29223.46,0.00014276,2]
[399641410,1766584238474,-9999.99,0.00014276,2]
[399641411,1766584238484,-299.99,0.00014276,2]
[399641412,1766584238494,-4999.99,0.00014276,2]
[399641413,1766584238504,-150.99,0.00014276,2]
[399641414,1766584238514,-1000.0,0.00014277,2]
[399641415,1766584238524,-33504.5899,0.00014277,2]
[399641416,1766584238535,-8384.5734,0.00014277,2]
[399641417,1766584238545,-500.0,0.00014277,2]
[399641418,1766584238555,-381.16311913,0.00014277,2]
[399641419,1766584238565,-151.0,0.00014277,2]
[399641420,1766584238575,-200.0,0.0001428,2]
[399641421,1766584238585,-500.0,0.00014376,2]
[399641422,1766584238595,-386.65632401,0.00014376,2]
[399641423,1766584238605,-500.0,0.00014376,2]
[399641424,1766584238616,-500.0,0.00014376,2]
[399641425,1766584238626,-500.0,0.00014376,2]
[399641426,1766584238636,-500.0,0.00014376,2]
[399641427,1766584238646,-526.00597189,0.00014376,2]
[399641428,1766584238656,-500.0,0.00014376,2]
[399641429,1766584238667,-500.0,0.00014376,2]
[399641430,1766584238677,-500.0,0.00014376,2]
[399641431,1766584238687,-500.0,0.00014376,2]
[399641432,1766584238698,-500.0,0.00014376,2]
[399641433,1766584238708,-500.0,0.00014376,2]
[399641434,1766584238718,-15144.39953354,0.00014378,2]
[399641435,1766584238728,-500.0,0.00014387,5]
[399641436,1766584238739,-150.0,0.00014387,2]
[399641437,1766584238749,-150.0,0.00014387,5]
[399641438,1766584238758,-150.0,0.00014387,5]
[399641439,1766584238768,-150.0,0.00014387,5]
[399641440,1766584238778,-500.0,0.00014387,5]
[399641441,1766584238794,-173.82331506,0.00014387,5]
[399641442,1766584238804,-150.53756938,0.00014387,5]
[399641443,1766584238814,-150.32339605,0.00014387,5]
[399641444,1766584238824,-150.3024691,0.00014387,5]
[399641445,1766584238835,-150.0,0.00014387,5]
[399641446,1766584238845,-150.0,0.00014387,5]
[399641447,1766584238855,-150.05940282,0.00014387,5]
[399641448,1766584238865,-150.0,0.00014387,5]
[399641449,1766584238876,-150.0,0.00014387,5]
[399641450,1766584238887,-500.0,0.00014387,5]
[399641451,1766584238900,-500.0,0.00014387,5]
[399641452,1766584238911,-151.75927975,0.00014387,5]
[399641453,1766584238921,-500.0,0.00014387,5]
[399641454,1766584238931,-500.0,0.00014387,5]
[399641455,1766584238942,-157.8979539,0.00014387,5]
[399641456,1766584238952,-500.0,0.00014387,5]
[399641457,1766584238962,-150.0,0.00014387,5]
[399641458,1766584238972,-150.0,0.00014387,5]
[399641459,1766584238982,-151.17389977,0.00014387,5]
[399641460,1766584238993,-150.0,0.00014387,5]
[399641461,1766584239004,-151.8978061,0.00014387,5]
[399641462,1766584239015,-150.0,0.00014387,5]
[399641463,1766584239025,-150.0,0.00014387,5]
[399641464,1766584239035,-150.0,0.00014387,5]
[399641465,1766584239046,-500.0,0.00014414,5]
[399641466,1766584239056,-150.0,0.00014414,2]
[399641467,1766584239071,-150.0,0.00014414,5]
[399641468,1766584239081,-151.42325421,0.00014414,5]
[399641469,1766584239091,-150.33162922,0.00014414,5]
[399641470,1766584239102,-502.82209839,0.00014414,5]
[399641471,1766584239113,-150.0,0.00014414,5]
[399641472,1766584239125,-150.0,0.00014414,5]
[399641473,1766584239136,-150.0,0.00014414,5]
[399641474,1766584239151,-150.0,0.00014414,5]
[399641475,1766584239161,-500.0,0.00014414,5]
[399641476,1766584239172,-500.0,0.00014414,5]
[399641477,1766584239182,-500.0,0.00014414,5]
[399641478,1766584239193,-500.0,0.00014414,5]
[399641479,1766584239202,-500.0,0.00014414,5]
[399641480,1766584239212,-156.7431376,0.00014414,5]
[399641481,1766584239224,-150.0,0.00014414,5]
[399641482,1766584239235,-150.0,0.00014414,5]
[399641483,1766584239246,-500.0,0.00014442,5]
[399641484,1766584239256,-150.0,0.00014442,2]
[399641485,1766584239266,-150.0,0.00014442,5]
[399641486,1766584239277,-202.52909335,0.00014442,5]
[399641487,1766584239287,-200.77857799,0.00014442,5]
[399641488,1766584239297,-156.38143809,0.00014442,5]
[399641489,1766584239307,-201.6820868,0.00014442,5]
[399641490,1766584239318,-500.0,0.00014442,5]
[399641491,1766584239328,-305.89905131,0.00014442,5]
[399641492,1766584239338,-504.56733337,0.00014442,5]
[399641493,1766584239348,-500.0,0.00014442,5]
[399641494,1766584239358,-500.0,0.00014442,5]
[399641495,1766584239368,-202.57672369,0.00014442,5]
[399641496,1766584239379,-150.0,0.00014442,5]
[399641497,1766584239389,-500.0,0.00014469,5]
[399641498,1766584239399,-165.63377507,0.00014469,2]
[399641499,1766584239410,-150.0,0.00014469,5]
[399641500,1766584239900,-500.0,0.00014469,5]
[399641501,1766584239911,-154.41523631,0.00014469,5]
[399641502,1766584239921,-500.0,0.00014469,5]
[399641503,1766584239939,-150.0,0.00014469,5]
[399641504,1766584239959,-169.91,0.00014473,2]
[399641505,1766584239970,-117249.73680456,0.00014492,2]
[399641506,1766584239981,-500.0,0.00014497,5]
[399641507,1766584239991,-150.0,0.00014497,5]
[399641508,1766584240002,-500.0,0.00014497,5]
[399641509,1766584240013,-500.0,0.00014497,5]
[399641510,1766584240024,-183.18195821,0.00014497,5]
[399641511,1766584240035,-150.0,0.00014508,2]
[399641512,1766584240046,-500.0,0.00014524,5]
[399641513,1766584240057,-250.0,0.00014524,5]
[399641514,1766584240072,-500.0,0.00014524,5]
[399641515,1766584240083,-500.0,0.00014524,5]
[399641516,1766584240093,-150.9439251,0.00014535,2]
[399641517,1766584240105,-500.0,0.00014541,2]
[399641518,1766584240115,-150.0,0.00014541,2]
[399641519,1766584240125,-2396.35,0.00014549,2]
[399641520,1766584240139,-500.0,0.00014551,5]
[399641521,1766584240150,-569.88171229,0.00014551,5]
[399641522,1766584240161,-500.0,0.00014551,5]
[399641524,1766584240171,-500.0,0.00014579,5]
[399641526,1766584240182,-554.97447821,0.00014579,5]
[399641528,1766584240192,-500.0,0.00014606,5]
[399641530,1766584240203,-500.0,0.00014634,5]
[399641532,1766584240213,-500.0,0.00014661,5]
[399641534,1766584240224,-500.0,0.00014688,5]
[399641536,1766584240234,-15144.39953354,0.00014693,2]
[399641538,1766584240244,-500.0,0.00014716,5]
[399641540,1766584240254,-500.0,0.00014743,5]
[399641542,1766584240265,-3114.64142777,0.00014764,2]
[399641544,1766584240275,-500.0,0.00014771,5]
[399641545,1766584240285,-500.0,0.00014798,5]
[399641546,1766584240294,-2396.35,0.00014823,2]
[399641547,1766584240310,-500.0,0.00014825,5]
[399641548,1766584240321,-500.0,0.00014853,5]
[399641549,1766584240331,-403.64355576,0.00014858,2]
[399641550,1766584240341,-394.0,0.0001488,5]
[399641551,1766584240352,-396.73,0.00014974,2]
[399641552,1766584240363,-299.39,0.00014974,2]
[399641553,1766584240373,-254.79,0.00014974,2]
[399641554,1766584240384,-349.26999972,0.00014999,2]
[399641555,1766584240394,-500.0,0.00014999,2]
[399641556,1766584240404,-500.0,0.00014999,2]
[399641557,1766584240414,-530.21490798,0.00014999,2]
[399641558,1766584240425,-500.0,0.00014999,2]
[399641559,1766584240435,-504.00842386,0.00014999,2]
[399641560,1766584240445,-500.0,0.00014999,2]
[399641561,1766584240455,-500.0,0.00014999,2]
[399641562,1766584240465,-1146.0,0.00015,2]
[399641563,1766584240475,-1000.0,0.00015,2]
[399641564,1766584240486,-15144.39953354,0.00015009,2]
[399641565,1766584240496,-500.0,0.00015045,2]
[399641566,1766584240506,-6232.1889195,0.00015092,2]
[399641567,1766584240517,-2396.35,0.00015097,2]
[399641568,1766584240528,-151.0,0.0001515,2]
[399641569,1766584240538,-156.587,0.0001515,2]
[399641570,1766584240548,-162.380719,0.0001515,2]
[399641571,1766584240559,-153.82745935,0.0001515,2]
[399641572,1766584240570,-250.0,0.0001515,2]
[399641573,1766584240580,-250.0,0.0001515,2]
[399641574,1766584240591,-500.0,0.0001515,2]
[399641575,1766584240601,-265.39375366,0.0001515,2]
[399641576,1766584240612,-500.0,0.0001515,2]
[399641577,1766584240622,-500.0,0.0001515,2]
[399641578,1766584240633,-500.0,0.0001515,2]
[399641579,1766584240643,-500.0,0.0001515,2]
[399641580,1766584240659,-500.0,0.0001515,2]
[399641581,1766584240670,-322.6107,0.0001515,2]
[399641582,1766584240680,-500.0,0.0001515,2]
[399641583,1766584240691,-500.0,0.0001515,2]
[399641584,1766584240701,-500.0,0.0001515,2]
[399641585,1766584240712,-500.0,0.0001515,2]
[399641586,1766584240723,-500.0,0.0001515,2]
[399641587,1766584240734,-500.0,0.0001515,2]
[399641588,1766584240744,-500.0,0.0001515,2]
[399641589,1766584240754,-500.0,0.0001515,2]
[399641590,1766584240764,-500.0,0.0001515,2]
[399641591,1766584240775,-500.0,0.0001515,2]
[399641592,1766584240785,-500.0,0.0001515,2]
[399641593,1766584240795,-500.0,0.0001515,2]
[399641594,1766584240806,-500.0,0.0001515,2]
[399641595,1766584240817,-500.0,0.0001515,2]
[399641596,1766584240828,-500.0,0.0001515,2]
[399641597,1766584240839,-250.0,0.0001515,2]
[399641598,1766584240849,-500.0,0.0001515,2]
[399641599,1766584240860,-500.0,0.0001515,2]
[399641600,1766584240870,-195.60924016,0.0001515,2]
[399641601,1766584240880,-500.0,0.0001515,2]
[399641602,1766584240891,-250.0,0.0001515,2]
[399641603,1766584240902,-500.0,0.0001515,2]
[399641604,1766584240913,-500.0,0.0001515,2]
[399641605,1766584240923,-500.0,0.0001515,2]
[399641606,1766584240934,-250.0,0.0001515,2]
[399641607,1766584240945,-500.0,0.0001515,2]
[399641608,1766584240956,-500.0,0.0001515,2]
[399641609,1766584240966,-500.0,0.0001515,2]
[399641610,1766584240976,-250.0,0.0001515,2]
[399641611,1766584240987,-500.0,0.0001515,2]
[399641612,1766584240997,-500.0,0.0001515,2]
[399641613,1766584241007,-500.0,0.0001515,2]
[399641614,1766584241024,-250.0,0.0001515,2]
[399641615,1766584241035,-500.0,0.0001515,2]
[399641616,1766584241046,-500.0,0.0001515,2]
[399641617,1766584241058,-250.0,0.0001515,2]
[399641618,1766584241070,-500.0,0.0001515,2]
[399641619,1766584241081,-500.0,0.0001515,2]
[399641620,1766584241092,-500.0,0.0001515,2]
[399641621,1766584241103,-250.0,0.0001515,2]
[399641622,1766584241116,-500.0,0.0001515,2]
[399641623,1766584241127,-500.0,0.0001515,2]
[399641624,1766584241139,-500.0,0.0001515,2]
[399641625,1766584241149,-500.0,0.0001515,2]
[399641626,1766584241160,-500.0,0.0001515,2]
[399641627,1766584241170,-200.0,0.0001515,2]
[399641628,1766584241181,-796.02653009,0.0001515,2]
[399641629,1766584241192,-500.0,0.0001515,2]
[399641630,1766584241203,-207.4,0.0001515,2]
[399641631,1766584241214,-543.0,0.0001515,2]
[399641632,1766584241225,-500.0,0.0001515,2]
[399641633,1766584241236,-500.0,0.0001515,2]
[399641634,1766584241247,-215.0738,0.0001515,2]
[399641635,1766584241258,-500.0,0.0001515,2]
[399641636,1766584241270,-223.0315306,0.0001515,2]
[399641637,1766584241281,-231.28369723,0.0001515,2]
[399641638,1766584241292,-500.0,0.0001515,2]
[399641639,1766584241303,-239.84119403,0.0001515,2]
[399641640,1766584241314,-248.71531821,0.0001515,2]
[399641641,1766584241324,-257.91778498,0.0001515,2]
[399641642,1766584241335,-267.46074303,0.0001515,2]
[399641643,1766584241346,-277.35679052,0.0001515,2]
[399641644,1766584241357,-620.0,0.0001515,2]
[399641645,1766584241372,-152.09829727,0.0001515,2]
[399641646,1766584241382,-197.26302206,0.0001515,2]
[399641647,1766584241393,-250.0,0.0001515,2]
[399641648,1766584241403,-250.0,0.0001515,2]
[399641649,1766584241415,-250.0,0.0001515,2]
[399641650,1766584241425,-250.0,0.0001515,2]
[399641651,1766584241436,-250.0,0.0001515,2]
[399641652,1766584241447,-250.0,0.0001515,2]
[399641653,1766584241458,-261.58626416,0.0001515,2]
[399641654,1766584241468,-578.20924308,0.0001515,2]
[399641655,1766584241479,-500.0,0.0001515,2]
[399641656,1766584241490,-500.0,0.0001515,2]
[399641657,1766584241500,-500.0,0.0001515,2]
[399641658,1766584241510,-500.0,0.0001515,2]
[399641659,1766584241521,-500.0,0.0001515,2]
[399641660,1766584241531,-500.0,0.0001515,2]
[399641661,1766584241542,-500.0,0.0001515,2]
[399641662,1766584241554,-500.0,0.0001515,2]
[399641663,1766584241568,-261.6071653,0.0001515,2]
[399641664,1766584241579,-1220.11,0.00015169,2]
[399641665,1766584241589,-500.0,0.00015173,2]
[399641666,1766584241599,-161.57308931,0.00015173,2]
[399641667,1766584241611,-169.37257746,0.00015173,2]
[399641668,1766584241621,-500.0,0.00015173,2]
[399641669,1766584241631,-500.0,0.00015173,2]
[399641670,1766584241642,-500.0,0.00015173,2]
[399641671,1766584241653,-562.564449,0.00015173,2]
[399641672,1766584241663,-163.19223575,0.00015173,2]
[399641673,1766584241674,-500.08479975,0.00015173,2]
[399641674,1766584241684,-500.37919946,0.00015173,2]
[399641675,1766584241695,-500.0,0.00015173,2]
[399641676,1766584241705,-500.0,0.00015173,2]
[399641677,1766584241715,-550.49299637,0.00015173,2]
[399641678,1766584241726,-500.0,0.00015173,2]
[399641679,1766584241737,-500.0,0.00015173,2]
[399641680,1766584241747,-176.76151573,0.00015173,2]
[399641681,1766584241760,-500.0,0.00015173,2]
[399641682,1766584241771,-500.0,0.00015173,2]
[399641683,1766584241781,-162.2863667,0.00015173,2]
[399641684,1766584241792,-500.0,0.00015173,2]
[399641685,1766584241802,-500.0,0.00015173,2]
[399641686,1766584241813,-500.0,0.00015173,2]
[399641687,1766584241824,-500.0,0.00015173,2]
[399641688,1766584241834,-500.0,0.00015173,2]
[399641689,1766584241845,-500.0,0.00015173,2]
[399641690,1766584241855,-500.0,0.00015173,2]
[399641691,1766584241865,-500.0,0.00015173,2]
[399641692,1766584241876,-500.0,0.00015173,2]
[399641693,1766584241887,-172.85820104,0.00015173,2]
[399641694,1766584241897,-500.0,0.00015173,2]
[399641695,1766584241907,-167.20691349,0.00015173,2]
[399641696,1766584241918,-276.60479743,0.00015173,2]
[399641697,1766584241928,-500.0,0.00015173,2]
[399641698,1766584241938,-500.0,0.00015173,2]
[399641699,1766584241949,-500.0,0.00015173,2]
[399641700,1766584241959,-500.0,0.00015173,2]
[399641701,1766584241970,-500.0,0.00015173,2]
[399641702,1766584241980,-500.0,0.00015173,2]
[399641703,1766584241991,-500.0,0.00015173,2]
[399641704,1766584242002,-500.0,0.00015173,2]
[399641705,1766584242013,-500.0,0.00015173,2]
[399641706,1766584242023,-500.0,0.00015173,2]
[399641707,1766584242035,-453.84632834,0.00015173,2]
[399641708,1766584242045,-500.0,0.00015173,2]
[399641709,1766584242056,-151.0,0.00015178,2]
[399641710,1766584242071,-151.0,0.00015179,2]
[399641711,1766584242082,-151.0,0.00015188,2]
[399641712,1766584242093,-151.0,0.00015217,2]
[399641713,1766584242104,-1390.5893116,0.00015277,2]
[399641714,1766584242117,-255.0,0.00015281,2]
[399641715,1766584242137,-150.0,0.00015288,2]
[399641716,1766584242149,-152.81357025,0.00015288,2]
[399641717,1766584242159,-150.0,0.00015288,2]
[399641718,1766584242171,-150.0,0.00015288,2]
[399641719,1766584242182,-150.0,0.00015288,2]
[399641720,1766584242194,-150.0,0.00015288,2]
[399641721,1766584242204,-150.0,0.00015288,2]
[399641722,1766584242215,-150.0,0.00015288,2]
[399641723,1766584242225,-150.00000001,0.00015288,2]
[399641724,1766584242237,-152.31137415,0.00015288,2]
[399641725,1766584242248,-150.0,0.00015288,2]
[399641726,1766584242258,-150.0,0.00015288,2]
[399641727,1766584242269,-150.0,0.00015288,2]
[399641728,1766584242280,-150.0,0.00015288,2]
[399641729,1766584242291,-15144.39953354,0.00015324,2]
[399641730,1766584242301,-2396.35,0.00015371,2]
[399641731,1766584242312,-150.0,0.00015401,2]
[399641732,1766584242323,-150.0,0.00015476,2]
[399641733,1766584242334,-1200.0,0.00015513,2]
[399641734,1766584242344,-300.0,0.00015513,2]
[399641735,1766584242355,-150.0,0.00015514,2]
[399641736,1766584242366,-150.0,0.0001553,2]
[399641737,1766584242376,-150.0,0.0001553,2]
[399641738,1766584242387,-150.0,0.0001553,2]
[399641739,1766584242398,-150.0,0.0001553,2]
[399641740,1766584242408,-403.64355576,0.00015539,2]
[399641741,1766584242419,-250.0,0.00015551,2]
[399641742,1766584242429,-150.0,0.00015571,2]
[399641743,1766584242440,-1680.0,0.00015578,2]
[399641744,1766584242451,-300.0,0.00015579,2]
[399641745,1766584242462,-195.0,0.00015579,2]
[399641746,1766584242472,-1000.0,0.00015604,2]
[399641747,1766584242483,-150.0,0.00015627,2]
[399641748,1766584242494,-15144.39953354,0.00015639,2]
[399641749,1766584242505,-2396.35,0.00015645,2]
[399641750,1766584242516,-150.0,0.00015665,2]
[399641751,1766584242527,-1000.0,0.00015677,2]
[399641752,1766584242537,-600.0,0.00015687,2]
[399641753,1766584242547,-300.0,0.00015687,2]
[399641754,1766584242558,-250.0,0.00015687,2]
[399641755,1766584242569,-5000.0,0.00015687,4]
[399641756,1766584242580,-2500.0,0.00015687,2]
[399641757,1766584242590,-195.0,0.00015687,2]
[399641758,1766584242601,-1000.0,0.00015702,2]
[399641759,1766584242612,-1000.0,0.00015702,2]